[Event "Titled Tuesday Blitz September 27 Late 2022"]
[White "Mikhailov, Viacheslav"]
[Black "Fernandez De La Vara, Arnaldo"]
[WhiteFideId "4187369"]
[BlackFideId "3518388"]
[WhiteElo "2381"]
[BlackElo "2387"]
[Result "0-1"]
[Round "09"]
[TimeControl "180+1"]
[Date "2022.09.27"]
[WhiteClock "0:00:01"]
[BlackClock "0:00:15"]

1. Nf3 {[%clk 0:02:59]}  c5 {[%clk 0:03:00]} 2. g3 {[%clk 0:02:59]}  b6 {[%clk 0:03:00]} 3. Bg2 {[%clk 0:03:00]}  Bb7 {[%clk 0:03:01]} 4. O-O {[%clk 0:03:01]}  Nf6 {[%clk 0:03:02]} 5. c3 {[%clk 0:03:01]}  g6 {[%clk 0:03:00]} 6. d4 {[%clk 0:03:01]}  Bg7 {[%clk 0:03:01]} 7. a4 {[%clk 0:03:02]}  Nc6 {[%clk 0:02:53]} 8. Ne5 {[%clk 0:02:57]}  Qc8 {[%clk 0:02:47]} 9. Nxc6 {[%clk 0:02:51]}  Bxc6 {[%clk 0:02:48]} 10. d5 {[%clk 0:02:50]}  Bb7 {[%clk 0:02:49]} 11. c4 {[%clk 0:02:45]}  O-O {[%clk 0:02:47]} 12. Nc3 {[%clk 0:02:46]}  Ne8 {[%clk 0:02:43]} 13. a5 {[%clk 0:02:42]}  Nd6 {[%clk 0:02:28]} 14. Bg5 {[%clk 0:01:51]}  Re8 {[%clk 0:02:21]} 15. Qd3 {[%clk 0:01:44]}  Ba6 {[%clk 0:02:03]} 16. b3 {[%clk 0:01:37]}  b5 {[%clk 0:01:57]} 17. cxb5 {[%clk 0:01:30]}  Nxb5 {[%clk 0:01:56]} 18. Nxb5 {[%clk 0:01:26]}  Qb8 {[%clk 0:01:56]} 19. d6 {[%clk 0:00:50]}  Bxb5 {[%clk 0:01:48]} 20. Qc2 {[%clk 0:00:34]}  Bxa1 {[%clk 0:01:35]} 21. Bxa8 {[%clk 0:00:26]}  Qxd6 {[%clk 0:01:25]} 22. Rxa1 {[%clk 0:00:18]}  Rxa8 {[%clk 0:01:21]} 23. Be3 {[%clk 0:00:17]}  Rc8 {[%clk 0:01:15]} 24. Rd1 {[%clk 0:00:16]}  Qc6 {[%clk 0:01:05]} 25. Qc3 {[%clk 0:00:15]}  d5 {[%clk 0:00:55]} 26. Qe5 {[%clk 0:00:07]}  d4 {[%clk 0:00:44]} 27. Bh6 {[%clk 0:00:06]}  Qf6 {[%clk 0:00:44]} 28. Qe4 {[%clk 0:00:04]}  Bc6 {[%clk 0:00:41]} 29. Qg4 {[%clk 0:00:02]}  Qf5 {[%clk 0:00:36]} 30. Qxf5 {[%clk 0:00:03]}  gxf5 {[%clk 0:00:37]} 31. Rc1 {[%clk 0:00:03]}  Bd5 {[%clk 0:00:31]} 32. b4 {[%clk 0:00:02]}  c4 {[%clk 0:00:32]} 33. b5 {[%clk 0:00:02]}  f6 {[%clk 0:00:18]} 34. b6 {[%clk 0:00:01]}  axb6 {[%clk 0:00:18]} 35. axb6 {[%clk 0:00:02]}  Kf7 {[%clk 0:00:17]} 36. Rb1 {[%clk 0:00:02]}  Bb7 {[%clk 0:00:16]} 37. Rb4 {[%clk 0:00:02]}  e5 {[%clk 0:00:16]} 38. Bc1 {[%clk 0:00:02]}  Ke6 {[%clk 0:00:16]} 39. Ra4 {[%clk 0:00:03]}  Rc6 {[%clk 0:00:16]} 40. Rb4 {[%clk 0:00:03]}  Kd5 {[%clk 0:00:17]} 41. f3 {[%clk 0:00:03]}  c3 {[%clk 0:00:15]} 42. Kf2 {[%clk 0:00:03]}  e4 {[%clk 0:00:14]} 43. Bh6 {[%clk 0:00:02]}  e3+ {[%clk 0:00:14]} 44. Ke1 {[%clk 0:00:03]}  c2 {[%clk 0:00:14]} 45. Kf1 {[%clk 0:00:01]}  c1=Q+ {[%clk 0:00:14]} 46. Kg2 {[%clk 0:00:02]}  Qc2 {[%clk 0:00:15]} 47. Kh3 {[%clk 0:00:02]}  Qxe2 {[%clk 0:00:15]} 48. Bf4 {[%clk 0:00:02]}  Qxf3 {[%clk 0:00:14]} 49. Rb5+ {[%clk 0:00:01]}  Ke6 {[%clk 0:00:14]} 50. Ra5 {[%clk 0:00:01]}  Qg4+ {[%clk 0:00:14]} 51. Kg2 {[%clk 0:00:01]}  Rc2+ {[%clk 0:00:15]} 0-1


[Site "https://www.chess.com"]

[Event "Titled Tuesday Blitz September 27 Late 2022"]
[White "Musovic, Armin"]
[Black "Prydun, Andriy"]
[WhiteFideId "939935"]
[BlackFideId "14145898"]
[WhiteElo "2255"]
[BlackElo "2163"]
[Result "0-1"]
[Round "09"]
[TimeControl "180+1"]
[Date "2022.09.28"]
[WhiteClock "0:00:05"]
[BlackClock "0:00:13"]

1. a3 {[%clk 0:03:00]}  d5 {[%clk 0:02:59]} 2. Nc3 {[%clk 0:03:01]}  c6 {[%clk 0:02:59]} 3. e4 {[%clk 0:03:02]}  Nf6 {[%clk 0:02:58]} 4. e5 {[%clk 0:03:02]}  Nfd7 {[%clk 0:02:58]} 5. f4 {[%clk 0:03:02]}  e6 {[%clk 0:02:57]} 6. Nf3 {[%clk 0:03:03]}  Be7 {[%clk 0:02:56]} 7. g3 {[%clk 0:03:03]}  b6 {[%clk 0:02:56]} 8. Bh3 {[%clk 0:03:04]}  Ba6 {[%clk 0:02:56]} 9. d3 {[%clk 0:03:04]}  c5 {[%clk 0:02:55]} 10. O-O {[%clk 0:03:04]}  g6 {[%clk 0:02:54]} 11. Qe2 {[%clk 0:03:04]}  Nc6 {[%clk 0:02:53]} 12. Bd2 {[%clk 0:03:03]}  Nd4 {[%clk 0:02:50]} 13. Qd1 {[%clk 0:03:03]}  Rc8 {[%clk 0:02:49]} 14. Ne2 {[%clk 0:03:02]}  Nxf3+ {[%clk 0:02:46]} 15. Rxf3 {[%clk 0:03:03]}  d4 {[%clk 0:02:44]} 16. Rf2 {[%clk 0:03:00]}  Bb7 {[%clk 0:02:44]} 17. g4 {[%clk 0:02:56]}  h5 {[%clk 0:02:42]} 18. Ng3 {[%clk 0:02:43]}  hxg4 {[%clk 0:02:40]} 19. Bxg4 {[%clk 0:02:40]}  Bh4 {[%clk 0:02:39]} 20. Bf3 {[%clk 0:02:38]}  Qc7 {[%clk 0:02:35]} 21. Qe2 {[%clk 0:01:44]}  Nb8 {[%clk 0:02:34]} 22. Rg2 {[%clk 0:01:40]}  Nc6 {[%clk 0:02:33]} 23. Ne4 {[%clk 0:01:38]}  Be7 {[%clk 0:02:27]} 24. Rf1 {[%clk 0:01:19]}  Kd7 {[%clk 0:02:18]} 25. Bg4 {[%clk 0:01:19]}  Rcg8 {[%clk 0:02:15]} 26. c4 {[%clk 0:01:10]}  dxc3 {[%clk 0:02:10]} 27. bxc3 {[%clk 0:01:10]}  Kc8 {[%clk 0:02:06]} 28. Be3 {[%clk 0:01:07]}  Kb8 {[%clk 0:02:04]} 29. Rb1 {[%clk 0:01:03]}  Rd8 {[%clk 0:01:51]} 30. Bf3 {[%clk 0:00:57]}  Rh3 {[%clk 0:01:43]} 31. Rg3 {[%clk 0:00:54]}  Rh4 {[%clk 0:01:40]} 32. a4 {[%clk 0:00:50]}  Na5 {[%clk 0:01:36]} 33. Bf2 {[%clk 0:00:39]}  Rxf4 {[%clk 0:01:31]} 34. d4 {[%clk 0:00:23]}  c4 {[%clk 0:01:25]} 35. Bg2 {[%clk 0:00:14]}  Nb3 {[%clk 0:01:23]} 36. Re1 {[%clk 0:00:12]}  Qd7 {[%clk 0:01:18]} 37. Qc2 {[%clk 0:00:11]}  Qxa4 {[%clk 0:01:16]} 38. Be3 {[%clk 0:00:12]}  Rf5 {[%clk 0:01:13]} 39. Bh3 {[%clk 0:00:11]}  Qc6 {[%clk 0:01:11]} 40. Bg2 {[%clk 0:00:09]}  Qc7 {[%clk 0:01:09]} 41. Nd2 {[%clk 0:00:07]}  Nxd2 {[%clk 0:01:06]} 42. Qxd2 {[%clk 0:00:06]}  Bxg2 {[%clk 0:01:03]} 43. Rxg2 {[%clk 0:00:07]}  Qb7 {[%clk 0:01:00]} 44. Qe2 {[%clk 0:00:04]}  Qd5 {[%clk 0:00:59]} 45. Rf2 {[%clk 0:00:03]}  Rh8 {[%clk 0:00:59]} 46. Bf4 {[%clk 0:00:03]}  Rh3 {[%clk 0:00:58]} 47. Bg3 {[%clk 0:00:03]}  Bd8 {[%clk 0:00:51]} 48. Ref1 {[%clk 0:00:04]}  a6 {[%clk 0:00:50]} 49. Qa2 {[%clk 0:00:04]}  Ka7 {[%clk 0:00:49]} 50. Ra1 {[%clk 0:00:03]}  a5 {[%clk 0:00:46]} 51. Qa4 {[%clk 0:00:03]}  b5 {[%clk 0:00:45]} 52. Qd1 {[%clk 0:00:02]}  a4 {[%clk 0:00:45]} 53. Qf1 {[%clk 0:00:02]}  Ba5 {[%clk 0:00:43]} 54. Qxh3 {[%clk 0:00:02]}  Bxc3 {[%clk 0:00:42]} 55. Rxf5 {[%clk 0:00:01]}  gxf5 {[%clk 0:00:38]} 56. Rf1 {[%clk 0:00:02]}  a3 {[%clk 0:00:36]} 57. Qh7 {[%clk 0:00:03]}  Qb7 {[%clk 0:00:34]} 58. Bf2 {[%clk 0:00:03]}  Ka6 {[%clk 0:00:31]} 59. d5 {[%clk 0:00:04]}  exd5 {[%clk 0:00:29]} 60. Qh3 {[%clk 0:00:05]}  b4 {[%clk 0:00:27]} 61. Qxf5 {[%clk 0:00:05]}  a2 {[%clk 0:00:25]} 62. Qf6+ {[%clk 0:00:05]}  Kb5 {[%clk 0:00:22]} 63. Qg7 {[%clk 0:00:05]}  b3 {[%clk 0:00:19]} 64. Qf8 {[%clk 0:00:04]}  b2 {[%clk 0:00:17]} 65. Qc5+ {[%clk 0:00:04]}  Ka4 {[%clk 0:00:15]} 66. Rd1 {[%clk 0:00:04]}  a1=Q {[%clk 0:00:14]} 67. Kg2 {[%clk 0:00:04]}  Qxd1 {[%clk 0:00:13]} 68. Qf8 {[%clk 0:00:04]}  b1=Q {[%clk 0:00:14]} 69. Qg8 {[%clk 0:00:04]}  Qe4+ {[%clk 0:00:14]} 70. Kg3 {[%clk 0:00:05]}  Qh5 {[%clk 0:00:14]} 71. Qg4 {[%clk 0:00:05]}  Qexg4# {[%clk 0:00:13]} 0-1


[Site "https://www.chess.com"]

[Event "Titled Tuesday Blitz September 27 Late 2022"]
[White "Nogerbek, Kazybek"]
[Black "Averjanov, Alexey"]
[WhiteFideId "13710427"]
[BlackFideId "14109867"]
[WhiteElo "2458"]
[BlackElo "2683"]
[Result "0-1"]
[Round "09"]
[TimeControl "180+1"]
[Date "2022.09.27"]
[WhiteClock "0:00:08"]
[BlackClock "0:00:18"]

1. Nf3 {[%clk 0:02:52]}  c5 {[%clk 0:02:59]} 2. c4 {[%clk 0:02:51]}  Nc6 {[%clk 0:03:00]} 3. Nc3 {[%clk 0:02:51]}  g6 {[%clk 0:03:00]} 4. g3 {[%clk 0:02:52]}  Bg7 {[%clk 0:03:00]} 5. Bg2 {[%clk 0:02:53]}  e6 {[%clk 0:03:01]} 6. O-O {[%clk 0:02:53]}  Nge7 {[%clk 0:03:02]} 7. d4 {[%clk 0:02:53]}  cxd4 {[%clk 0:03:02]} 8. Nb5 {[%clk 0:02:53]}  d5 {[%clk 0:03:03]} 9. cxd5 {[%clk 0:02:46]}  Nxd5 {[%clk 0:03:04]} 10. Nfxd4 {[%clk 0:02:47]}  Nxd4 {[%clk 0:03:05]} 11. Nxd4 {[%clk 0:02:47]}  O-O {[%clk 0:03:06]} 12. e4 {[%clk 0:02:37]}  Nb6 {[%clk 0:03:05]} 13. Nb5 {[%clk 0:02:35]}  Bd7 {[%clk 0:03:04]} 14. Nd6 {[%clk 0:02:31]}  Bc6 {[%clk 0:03:04]} 15. Re1 {[%clk 0:01:57]}  Be5 {[%clk 0:02:53]} 16. Bf4 {[%clk 0:01:57]}  Bxf4 {[%clk 0:02:52]} 17. gxf4 {[%clk 0:01:58]}  Qh4 {[%clk 0:02:50]} 18. Qf3 {[%clk 0:01:58]}  Rad8 {[%clk 0:02:44]} 19. Rad1 {[%clk 0:01:57]}  Rd7 {[%clk 0:02:42]} 20. Qg3 {[%clk 0:01:56]}  Qxg3 {[%clk 0:02:41]} 21. hxg3 {[%clk 0:01:55]}  Rfd8 {[%clk 0:02:42]} 22. e5 {[%clk 0:01:51]}  Bxg2 {[%clk 0:02:42]} 23. Kxg2 {[%clk 0:01:52]}  Nc8 {[%clk 0:02:40]} 24. Rd3 {[%clk 0:01:50]}  Nxd6 {[%clk 0:02:39]} 25. Red1 {[%clk 0:01:51]}  Kf8 {[%clk 0:02:14]} 26. exd6 {[%clk 0:01:46]}  h5 {[%clk 0:02:14]} 27. Kf3 {[%clk 0:01:38]}  Ke8 {[%clk 0:02:11]} 28. Ke4 {[%clk 0:01:37]}  f6 {[%clk 0:02:08]} 29. a4 {[%clk 0:01:32]}  Rc8 {[%clk 0:02:06]} 30. Rc3 {[%clk 0:01:32]}  Rxc3 {[%clk 0:02:03]} 31. bxc3 {[%clk 0:01:33]}  b6 {[%clk 0:02:01]} 32. c4 {[%clk 0:01:30]}  Rd8 {[%clk 0:01:56]} 33. a5 {[%clk 0:01:17]}  Kd7 {[%clk 0:01:56]} 34. Rb1 {[%clk 0:01:11]}  Kc6 {[%clk 0:01:56]} 35. axb6 {[%clk 0:01:04]}  axb6 {[%clk 0:01:57]} 36. Ra1 {[%clk 0:01:02]}  Rxd6 {[%clk 0:01:54]} 37. Ra8 {[%clk 0:01:01]}  Rd2 {[%clk 0:01:50]} 38. Ke3 {[%clk 0:01:01]}  Rc2 {[%clk 0:01:48]} 39. Rg8 {[%clk 0:01:02]}  Kd6 {[%clk 0:01:39]} 40. Rxg6 {[%clk 0:01:01]}  f5 {[%clk 0:01:39]} 41. Rh6 {[%clk 0:00:57]}  Rxc4 {[%clk 0:01:38]} 42. Rxh5 {[%clk 0:00:57]}  b5 {[%clk 0:01:35]} 43. Rh8 {[%clk 0:00:58]}  b4 {[%clk 0:01:32]} 44. Rb8 {[%clk 0:00:58]}  Kd5 {[%clk 0:01:29]} 45. Rb5+ {[%clk 0:00:50]}  Kc6 {[%clk 0:01:29]} 46. Rb8 {[%clk 0:00:50]}  Kc5 {[%clk 0:01:21]} 47. Kd2 {[%clk 0:00:43]}  Re4 {[%clk 0:01:18]} 48. Kd3 {[%clk 0:00:40]}  Rd4+ {[%clk 0:01:15]} 49. Ke3 {[%clk 0:00:40]}  Rd6 {[%clk 0:01:11]} 50. f3 {[%clk 0:00:37]}  Kc4 {[%clk 0:01:08]} 51. g4 {[%clk 0:00:37]}  b3 {[%clk 0:01:03]} 52. g5 {[%clk 0:00:38]}  Kc3 {[%clk 0:00:59]} 53. Rc8+ {[%clk 0:00:38]}  Kb4 {[%clk 0:00:57]} 54. Rb8+ {[%clk 0:00:36]}  Kc4 {[%clk 0:00:55]} 55. Rc8+ {[%clk 0:00:35]}  Kb4 {[%clk 0:00:53]} 56. Rb8+ {[%clk 0:00:35]}  Kc3 {[%clk 0:00:52]} 57. Rc8+ {[%clk 0:00:34]}  Kb2 {[%clk 0:00:52]} 58. Kf2 {[%clk 0:00:20]}  Ra6 {[%clk 0:00:48]} 59. Kg3 {[%clk 0:00:13]}  Ka2 {[%clk 0:00:43]} 60. Kh4 {[%clk 0:00:12]}  b2 {[%clk 0:00:41]} 61. Rb8 {[%clk 0:00:11]}  b1=Q {[%clk 0:00:40]} 62. Rxb1 {[%clk 0:00:11]}  Kxb1 {[%clk 0:00:41]} 63. g6 {[%clk 0:00:12]}  Kc2 {[%clk 0:00:36]} 64. Kg5 {[%clk 0:00:12]}  Kd3 {[%clk 0:00:32]} 65. g7 {[%clk 0:00:06]}  Ra8 {[%clk 0:00:28]} 66. Kf6 {[%clk 0:00:07]}  Ke3 {[%clk 0:00:25]} 67. Kxe6 {[%clk 0:00:07]}  Kxf4 {[%clk 0:00:23]} 68. Kf6 {[%clk 0:00:07]}  Ra6+ {[%clk 0:00:17]} 69. Kf7 {[%clk 0:00:07]}  Ra7+ {[%clk 0:00:17]} 70. Kg6 {[%clk 0:00:07]}  Rxg7+ {[%clk 0:00:17]} 71. Kxg7 {[%clk 0:00:08]}  Kxf3 {[%clk 0:00:18]} 0-1


[Site "https://www.chess.com"]

[Event "Titled Tuesday Blitz September 27 Late 2022"]
[White "Pace, Christopher"]
[Black "Kjartansson, Gudmundur"]
[WhiteFideId "2610167"]
[BlackFideId "2301318"]
[WhiteElo "2348"]
[BlackElo "2338"]
[Result "0-1"]
[Round "09"]
[TimeControl "180+1"]
[Date "2022.09.28"]
[WhiteClock "0:00:07"]
[BlackClock "0:00:08"]

1. g3 {[%clk 0:03:00]}  Nf6 {[%clk 0:02:58]} 2. Bg2 {[%clk 0:03:01]}  e6 {[%clk 0:02:57]} 3. c4 {[%clk 0:03:00]}  Be7 {[%clk 0:02:57]} 4. Nc3 {[%clk 0:02:59]}  O-O {[%clk 0:02:57]} 5. e4 {[%clk 0:02:58]}  c5 {[%clk 0:02:55]} 6. Nge2 {[%clk 0:02:55]}  Nc6 {[%clk 0:02:55]} 7. d4 {[%clk 0:02:55]}  cxd4 {[%clk 0:02:54]} 8. Nxd4 {[%clk 0:02:56]}  Nxd4 {[%clk 0:02:50]} 9. Qxd4 {[%clk 0:02:55]}  Qc7 {[%clk 0:02:49]} 10. O-O {[%clk 0:02:54]}  d6 {[%clk 0:02:49]} 11. Rd1 {[%clk 0:02:49]}  a6 {[%clk 0:02:49]} 12. Bg5 {[%clk 0:02:46]}  Bd7 {[%clk 0:02:41]} 13. Bxf6 {[%clk 0:02:37]}  Bxf6 {[%clk 0:02:23]} 14. Qxd6 {[%clk 0:02:37]}  Qxd6 {[%clk 0:02:24]} 15. Rxd6 {[%clk 0:02:38]}  Bc6 {[%clk 0:02:24]} 16. Rc1 {[%clk 0:02:33]}  Rfd8 {[%clk 0:02:14]} 17. Rxd8+ {[%clk 0:02:23]}  Rxd8 {[%clk 0:02:14]} 18. Rd1 {[%clk 0:02:23]}  Rc8 {[%clk 0:02:05]} 19. Rd3 {[%clk 0:02:17]}  Be8 {[%clk 0:01:15]} 20. f4 {[%clk 0:02:11]}  Be7 {[%clk 0:01:03]} 21. b3 {[%clk 0:02:08]}  b5 {[%clk 0:01:02]} 22. cxb5 {[%clk 0:02:09]}  axb5 {[%clk 0:01:02]} 23. e5 {[%clk 0:02:04]}  b4 {[%clk 0:01:01]} 24. Ne4 {[%clk 0:02:02]}  Bb5 {[%clk 0:00:55]} 25. Rd2 {[%clk 0:01:55]}  Rc1+ {[%clk 0:00:47]} 26. Kf2 {[%clk 0:01:55]}  f5 {[%clk 0:00:40]} 27. Nd6 {[%clk 0:01:49]}  Ba6 {[%clk 0:00:40]} 28. Bf3 {[%clk 0:01:27]}  g5 {[%clk 0:00:39]} 29. Be2 {[%clk 0:01:27]}  Bxe2 {[%clk 0:00:33]} 30. Kxe2 {[%clk 0:01:25]}  gxf4 {[%clk 0:00:33]} 31. gxf4 {[%clk 0:01:26]}  Bh4 {[%clk 0:00:25]} 32. Nc4 {[%clk 0:01:18]}  Kf7 {[%clk 0:00:18]} 33. Rd7+ {[%clk 0:01:16]}  Kg6 {[%clk 0:00:18]} 34. Rd2 {[%clk 0:01:03]}  Rh1 {[%clk 0:00:18]} 35. Kf3 {[%clk 0:01:02]}  Kh5 {[%clk 0:00:18]} 36. Kg2 {[%clk 0:00:59]}  Re1 {[%clk 0:00:16]} 37. a4 {[%clk 0:00:50]}  bxa3 {[%clk 0:00:16]} 38. Nxa3 {[%clk 0:00:51]}  Kg4 {[%clk 0:00:16]} 39. b4 {[%clk 0:00:34]}  Kxf4 {[%clk 0:00:14]} 40. b5 {[%clk 0:00:34]}  Re3 {[%clk 0:00:11]} 41. Nc4 {[%clk 0:00:30]}  Rb3 {[%clk 0:00:11]} 42. b6 {[%clk 0:00:29]}  Rb4 {[%clk 0:00:11]} 43. Rd4+ {[%clk 0:00:27]}  Kg5 {[%clk 0:00:10]} 44. Kf3 {[%clk 0:00:21]}  h5 {[%clk 0:00:09]} 45. h3 {[%clk 0:00:21]}  Rb3+ {[%clk 0:00:10]} 46. Kg2 {[%clk 0:00:19]}  Rb4 {[%clk 0:00:10]} 47. Kf3 {[%clk 0:00:18]}  Be1 {[%clk 0:00:10]} 48. Ke2 {[%clk 0:00:16]}  Bc3 {[%clk 0:00:09]} 49. h4+ {[%clk 0:00:17]}  Kh6 {[%clk 0:00:09]} 50. Rf4 {[%clk 0:00:07]}  Bxe5 {[%clk 0:00:08]} 0-1


[Site "https://www.chess.com"]

[Event "Titled Tuesday Blitz September 27 Late 2022"]
[White "Rangel, Daniel"]
[Black "Tanenbaum, Zachary"]
[WhiteFideId "2124475"]
[BlackFideId "2060850"]
[WhiteElo "2225"]
[BlackElo "2175"]
[Result "0-1"]
[Round "09"]
[TimeControl "180+1"]
[Date "2022.09.28"]
[WhiteClock "0:00:06"]
[BlackClock "0:00:59"]

1. c4 {[%clk 0:03:00]}  e5 {[%clk 0:03:00]} 2. g3 {[%clk 0:03:01]}  Nc6 {[%clk 0:03:00]} 3. Bg2 {[%clk 0:03:01]}  Nf6 {[%clk 0:03:01]} 4. Nc3 {[%clk 0:03:02]}  Bc5 {[%clk 0:03:02]} 5. e3 {[%clk 0:03:02]}  d6 {[%clk 0:03:03]} 6. Nge2 {[%clk 0:03:02]}  O-O {[%clk 0:03:03]} 7. O-O {[%clk 0:03:02]}  Re8 {[%clk 0:03:02]} 8. d4 {[%clk 0:03:01]}  Bb6 {[%clk 0:03:02]} 9. Nd5 {[%clk 0:02:59]}  Bg4 {[%clk 0:02:58]} 10. f3 {[%clk 0:02:50]}  Bh5 {[%clk 0:02:53]} 11. Nxb6 {[%clk 0:02:48]}  axb6 {[%clk 0:02:54]} 12. d5 {[%clk 0:02:48]}  Ne7 {[%clk 0:02:51]} 13. e4 {[%clk 0:02:46]}  c6 {[%clk 0:02:32]} 14. dxc6 {[%clk 0:02:38]}  bxc6 {[%clk 0:02:32]} 15. Be3 {[%clk 0:02:39]}  d5 {[%clk 0:02:31]} 16. exd5 {[%clk 0:02:30]}  cxd5 {[%clk 0:02:31]} 17. cxd5 {[%clk 0:02:30]}  Nexd5 {[%clk 0:02:32]} 18. Bf2 {[%clk 0:02:31]}  e4 {[%clk 0:02:28]} 19. Nc3 {[%clk 0:02:03]}  Nxc3 {[%clk 0:02:25]} 20. bxc3 {[%clk 0:02:02]}  e3 {[%clk 0:02:25]} 21. Qxd8 {[%clk 0:01:54]}  exf2+ {[%clk 0:02:25]} 22. Rxf2 {[%clk 0:01:47]}  Rexd8 {[%clk 0:02:21]} 23. Rb2 {[%clk 0:01:46]}  Nd5 {[%clk 0:02:18]} 24. g4 {[%clk 0:01:38]}  Bg6 {[%clk 0:02:17]} 25. f4 {[%clk 0:01:38]}  Bd3 {[%clk 0:02:10]} 26. Rd2 {[%clk 0:01:24]}  Bc4 {[%clk 0:01:04]} 27. Rad1 {[%clk 0:00:55]}  Ra5 {[%clk 0:01:03]} 28. Rd4 {[%clk 0:00:48]}  Rc5 {[%clk 0:01:03]} 29. Rxc4 {[%clk 0:00:33]}  Rxc4 {[%clk 0:01:04]} 30. Bxd5 {[%clk 0:00:34]}  Kf8 {[%clk 0:01:04]} 31. Bxc4 {[%clk 0:00:07]}  Rxd1+ {[%clk 0:01:05]} 32. Kf2 {[%clk 0:00:05]}  Rc1 {[%clk 0:01:05]} 33. Bb3 {[%clk 0:00:05]}  Rxc3 {[%clk 0:01:05]} 34. h4 {[%clk 0:00:03]}  g6 {[%clk 0:01:04]} 35. Kg2 {[%clk 0:00:03]}  Kg7 {[%clk 0:01:02]} 36. g5 {[%clk 0:00:03]}  f6 {[%clk 0:00:59]} 37. Be6 {[%clk 0:00:03]}  h6 {[%clk 0:00:58]} 38. Bb3 {[%clk 0:00:02]}  fxg5 {[%clk 0:00:57]} 39. fxg5 {[%clk 0:00:03]}  hxg5 {[%clk 0:00:58]} 40. hxg5 {[%clk 0:00:03]}  Rc5 {[%clk 0:00:58]} 41. Kg3 {[%clk 0:00:03]}  Rxg5+ {[%clk 0:00:58]} 42. Kf4 {[%clk 0:00:04]}  Rf5+ {[%clk 0:00:58]} 43. Kg4 {[%clk 0:00:04]}  Kf6 {[%clk 0:00:59]} 44. Kg3 {[%clk 0:00:05]}  g5 {[%clk 0:00:59]} 45. Kg2 {[%clk 0:00:06]}  Rf4 {[%clk 0:00:59]} 46. Kg3 {[%clk 0:00:07]}  Ke5 {[%clk 0:00:59]} 47. Bg8 {[%clk 0:00:05]}  Kd4 {[%clk 0:00:58]} 48. Bb3 {[%clk 0:00:05]}  Kc3 {[%clk 0:00:58]} 49. Bg8 {[%clk 0:00:05]}  Kb2 {[%clk 0:00:58]} 50. Be6 {[%clk 0:00:04]}  Ra4 {[%clk 0:00:57]} 51. Bg8 {[%clk 0:00:04]}  Rxa2 {[%clk 0:00:57]} 52. Kg4 {[%clk 0:00:04]}  Ra5 {[%clk 0:00:57]} 53. Be6 {[%clk 0:00:04]}  Rc5 {[%clk 0:00:57]} 54. Bf7 {[%clk 0:00:04]}  b5 {[%clk 0:00:57]} 55. Bg6 {[%clk 0:00:04]}  b4 {[%clk 0:00:58]} 56. Bf5 {[%clk 0:00:04]}  Rxf5 {[%clk 0:00:57]} 57. Kxf5 {[%clk 0:00:05]}  b3 {[%clk 0:00:58]} 58. Kxg5 {[%clk 0:00:06]}  Kc2 {[%clk 0:00:58]} 59. Kf4 {[%clk 0:00:06]}  b2 {[%clk 0:00:59]} 0-1


[Site "https://www.chess.com"]

[Event "Titled Tuesday Blitz September 27 Late 2022"]
[White "Rastbod, Ali"]
[Black "Salman, Pavel"]
[WhiteFideId "12567477"]
[BlackFideId "24153753"]
[WhiteElo "2191"]
[BlackElo "2039"]
[Result "1-0"]
[Round "09"]
[TimeControl "180+1"]
[Date "2022.09.28"]
[WhiteClock "0:00:20"]
[BlackClock "0:00:12"]

1. e4 {[%clk 0:02:46]}  c5 {[%clk 0:03:00]} 2. Nf3 {[%clk 0:02:42]}  e6 {[%clk 0:03:00]} 3. g3 {[%clk 0:02:40]}  Nc6 {[%clk 0:02:59]} 4. Bg2 {[%clk 0:02:40]}  g6 {[%clk 0:03:00]} 5. d4 {[%clk 0:02:39]}  cxd4 {[%clk 0:02:14]} 6. Nxd4 {[%clk 0:02:40]}  a6 {[%clk 0:02:15]} 7. O-O {[%clk 0:02:22]}  Bg7 {[%clk 0:02:14]} 8. Nxc6 {[%clk 0:02:16]}  dxc6 {[%clk 0:02:13]} 9. Re1 {[%clk 0:02:17]}  Qxd1 {[%clk 0:02:09]} 10. Rxd1 {[%clk 0:02:18]}  Ne7 {[%clk 0:02:09]} 11. Nd2 {[%clk 0:02:04]}  b5 {[%clk 0:01:48]} 12. Nb3 {[%clk 0:02:01]}  O-O {[%clk 0:01:49]} 13. c3 {[%clk 0:01:55]}  a5 {[%clk 0:01:41]} 14. Be3 {[%clk 0:01:52]}  b4 {[%clk 0:01:39]} 15. Bd4 {[%clk 0:01:47]}  bxc3 {[%clk 0:01:32]} 16. bxc3 {[%clk 0:01:46]}  Ba6 {[%clk 0:01:13]} 17. Nc5 {[%clk 0:01:42]}  Bc4 {[%clk 0:01:07]} 18. Bxg7 {[%clk 0:01:40]}  Kxg7 {[%clk 0:01:07]} 19. Rd7 {[%clk 0:01:40]}  Rfe8 {[%clk 0:01:02]} 20. a4 {[%clk 0:01:37]}  Rad8 {[%clk 0:00:58]} 21. Rad1 {[%clk 0:01:37]}  Rxd7 {[%clk 0:00:56]} 22. Rxd7 {[%clk 0:01:38]}  e5 {[%clk 0:00:51]} 23. Bf1 {[%clk 0:01:32]}  Bxf1 {[%clk 0:00:41]} 24. Kxf1 {[%clk 0:01:33]}  Nc8 {[%clk 0:00:41]} 25. Ke2 {[%clk 0:01:27]}  h5 {[%clk 0:00:38]} 26. h4 {[%clk 0:01:24]}  Nb6 {[%clk 0:00:30]} 27. Ra7 {[%clk 0:01:22]}  Nc4 {[%clk 0:00:28]} 28. Kd3 {[%clk 0:01:18]}  Nb2+ {[%clk 0:00:28]} 29. Kc2 {[%clk 0:01:18]}  Nc4 {[%clk 0:00:28]} 30. Kd3 {[%clk 0:01:06]}  Nb2+ {[%clk 0:00:28]} 31. Ke2 {[%clk 0:01:07]}  Nc4 {[%clk 0:00:28]} 32. Rc7 {[%clk 0:00:54]}  Rb8 {[%clk 0:00:21]} 33. Rxc6 {[%clk 0:00:53]}  Rb2+ {[%clk 0:00:21]} 34. Kd3 {[%clk 0:00:51]}  Na3 {[%clk 0:00:14]} 35. f4 {[%clk 0:00:49]}  exf4 {[%clk 0:00:13]} 36. gxf4 {[%clk 0:00:49]}  Rh2 {[%clk 0:00:12]} 37. f5 {[%clk 0:00:48]}  gxf5 {[%clk 0:00:11]} 38. exf5 {[%clk 0:00:47]}  Rxh4 {[%clk 0:00:11]} 39. Ne4 {[%clk 0:00:47]}  Rh3+ {[%clk 0:00:10]} 40. Kd4 {[%clk 0:00:47]}  Nc2+ {[%clk 0:00:09]} 41. Ke5 {[%clk 0:00:48]}  Ne3 {[%clk 0:00:08]} 42. Rc8 {[%clk 0:00:24]}  Rf3 {[%clk 0:00:08]} 43. f6+ {[%clk 0:00:24]}  Kg6 {[%clk 0:00:07]} 44. Rg8+ {[%clk 0:00:24]}  Kh7 {[%clk 0:00:07]} 45. Rg7+ {[%clk 0:00:21]}  Kh8 {[%clk 0:00:07]} 46. Rxf7 {[%clk 0:00:20]}  Ng4+ {[%clk 0:00:07]} 47. Ke6 {[%clk 0:00:21]}  Re3 {[%clk 0:00:06]} 48. Kd5 {[%clk 0:00:21]}  h4 {[%clk 0:00:05]} 49. Kd4 {[%clk 0:00:11]}  Re1 {[%clk 0:00:04]} 50. Ng5 {[%clk 0:00:09]}  Nxf6 {[%clk 0:00:04]} 51. Rxf6 {[%clk 0:00:09]}  h3 {[%clk 0:00:05]} 52. Rh6+ {[%clk 0:00:09]}  Kg7 {[%clk 0:00:05]} 53. Rxh3 {[%clk 0:00:10]}  Ra1 {[%clk 0:00:05]} 54. Ne6+ {[%clk 0:00:08]}  Kf6 {[%clk 0:00:05]} 55. Nc5 {[%clk 0:00:09]}  Rd1+ {[%clk 0:00:05]} 56. Kc4 {[%clk 0:00:10]}  Ke7 {[%clk 0:00:05]} 57. Re3+ {[%clk 0:00:10]}  Kd6 {[%clk 0:00:05]} 58. Rd3+ {[%clk 0:00:11]}  Rxd3 {[%clk 0:00:06]} 59. Nxd3 {[%clk 0:00:11]}  Kc6 {[%clk 0:00:07]} 60. Kd4 {[%clk 0:00:12]}  Kb6 {[%clk 0:00:07]} 61. c4 {[%clk 0:00:13]}  Kc6 {[%clk 0:00:07]} 62. c5 {[%clk 0:00:14]}  Kb7 {[%clk 0:00:08]} 63. Kd5 {[%clk 0:00:15]}  Ka6 {[%clk 0:00:09]} 64. Kd6 {[%clk 0:00:15]}  Kb7 {[%clk 0:00:09]} 65. c6+ {[%clk 0:00:16]}  Kb6 {[%clk 0:00:10]} 66. c7 {[%clk 0:00:17]}  Kb7 {[%clk 0:00:11]} 67. Kd7 {[%clk 0:00:17]}  Kb6 {[%clk 0:00:11]} 68. c8=Q {[%clk 0:00:18]}  Ka7 {[%clk 0:00:12]} 69. Qc6 {[%clk 0:00:18]}  Kb8 {[%clk 0:00:13]} 70. Qb5+ {[%clk 0:00:19]}  Ka7 {[%clk 0:00:13]} 71. Kc7 {[%clk 0:00:19]}  Ka8 {[%clk 0:00:12]} 72. Qb7# {[%clk 0:00:20]} 1-0


[Site "https://www.chess.com"]